fUSD/lending_fUSD_20250305
["ID","MTS","AMOUNT","RATE_DAILY","PERIOD"]
[355437690,1741153832705,-500.0,0.00011927,2]
[355437691,1741153832713,-5300.64,0.00011927,2]
[355437692,1741153832722,-701.93,0.00011927,2]
[355437693,1741153832731,-1684.95,0.00011927,2]
[355437694,1741153832740,-555.59,0.00011927,2]
[355437695,1741153832750,-500.0,0.00011927,2]
[355437696,1741153832758,-500.0,0.00011927,2]
[355437697,1741153832767,-3653.95,0.00011927,2]
[355437698,1741153832776,-895.34,0.00011927,2]
[355437699,1741153832785,-500.0,0.00011927,2]
[355437700,1741153832794,-500.0,0.00011927,2]
[355437701,1741153832803,-500.0,0.00011927,2]
[355437702,1741153832812,-1077.38,0.00011927,2]
[355437703,1741153832821,-500.0,0.00011927,2]
[355437704,1741153832830,-500.0,0.00011927,2]
[355437705,1741153832839,-3517.27,0.00011927,2]
[355437706,1741153832849,-500.0,0.00011927,2]
[355437707,1741153832857,-500.0,0.00011927,2]
[355437708,1741153832866,-502.9959701,0.00011927,2]
[355437709,1741153832876,-500.0,0.00011927,2]
[355437710,1741153832884,-1024.82,0.00011927,2]
[355437711,1741153832894,-2645.02,0.00011927,2]
[355437712,1741153832903,-500.0,0.00011927,2]
[355437713,1741153832912,-1052.16,0.00011927,2]
[355437714,1741153832921,-504.99284269,0.00011927,2]
[355437715,1741153832930,-500.0,0.00011927,2]
[355437716,1741153832938,-500.0,0.00011927,2]
[355437717,1741153832947,-500.0,0.00011927,2]
[355437718,1741153832955,-500.0,0.00011927,2]
[355437719,1741153832964,-2156.1,0.00011927,2]
[355437720,1741153832974,-502.66632263,0.00011927,2]
[355437721,1741153832983,-500.0,0.00011927,2]
[355437722,1741153832992,-365.57736682,0.00011927,2]
[355437723,1741153833068,-366.77,0.00011927,2]
[355437724,1741153833086,-484.54471875,0.00011927,2]
[355437725,1741153833117,-1348.10131452,0.00011927,2]
[355437728,1741153837759,-957.2424092,0.00011927,2]
[355437735,1741153839778,-1010.28419071,0.00011927,2]
[355437736,1741153839787,-561.27,0.00011927,2]
[355437737,1741153839796,-1009.67,0.00011927,2]
[355437738,1741153839805,-7230.4,0.00011927,2]
[355437739,1741153839815,-547.27,0.00011927,2]
[355437740,1741153839824,-500.0,0.00011927,2]
[355437741,1741153839833,-69.01117889,0.00011927,2]
[355437742,1741153841391,-668.4330986,0.00011927,2]
[355437754,1741153843943,-344.94220916,0.00010718,2]
[355437755,1741153843956,-67.82095535,0.00010718,2]
[355437756,1741153843965,-2552.97904465,0.00011927,2]
[355437783,1741153846299,-157.56667786,0.00011927,2]
[355437785,1741153846309,-176.27940215,0.00011927,2]
[355437788,1741153846335,-323.72059785,0.00011927,2]
[355437789,1741153846344,-1985.04,0.00011927,2]
[355437790,1741153846354,-532.8,0.00011927,2]
[355437791,1741153846363,-500.0,0.00011927,2]
[355437792,1741153846373,-2477.74,0.00011927,2]
[355437793,1741153846383,-500.0,0.00011927,2]
[355437794,1741153846393,-500.0,0.00011927,2]
[355437795,1741153846402,-502.65789682,0.00011927,2]
[355437796,1741153863021,-300.0,0.00011929,7]
[355437797,1741153864432,-200.0,0.00011929,7]
[355437798,1741153955468,500.0,0.00010068,2]
[355437799,1741153955599,2200.0,8.22e-05,2]
[355437800,1741153957182,2200.0,9.59e-05,2]
[355437801,1741154239099,398.11,9.057e-05,2]
[355437803,1741154846881,-655.0,0.00016493,30]
[355437810,1741154962734,1000.0,9.369e-05,2]
[355437815,1741155032144,-1800.0,0.00010465,2]
[355437816,1741155032153,-1061.0,0.00010698,2]
[355437817,1741155032162,-1000.0,0.00010739,2]
[355437818,1741155032172,-165.21,0.00010944,2]
[355437819,1741155032182,-166.68,0.00010954,2]
[355437820,1741155032191,-681.0060432,0.00010962,2]
[355437849,1741155038136,-318.9939568,0.00010962,2]
[355437850,1741155038147,-250.0,0.00011042,2]
[355437851,1741155038157,-87.96747931,0.00011261,2]
[355437886,1741155044647,-973.03252069,0.00011261,2]
[355437887,1741155044658,-398.11,0.00011321,2]
[355437888,1741155044667,-500.0,0.0001137,2]
[355437889,1741155044677,-989.55,0.00011378,2]
[355437890,1741155044687,-989.55,0.000114,2]
[355437891,1741155044696,-989.55,0.000115,2]
[355437892,1741155044706,-989.55,0.000115,2]
[355437893,1741155044716,-989.55,0.000115,2]
[355437894,1741155044725,-989.55,0.000115,2]
[355437895,1741155044735,-989.55,0.000115,2]
[355437896,1741155044744,-500.0,0.00011561,2]
[355437897,1741155044756,-500.0,0.00011753,2]
[355437898,1741155044765,-150.0,0.00011801,2]
[355437899,1741155044775,-3930.0,0.00011801,2]
[355437900,1741155044785,-1012.0,0.00011801,2]
[355437901,1741155044795,-963.47931662,0.00011826,2]
[355437902,1741155044805,-226.8780795,0.00011828,2]
[355437903,1741155044815,-183.20853065,0.00011833,2]
[355437904,1741155044825,-1800.0,0.00011835,2]
[355437905,1741155044834,-1061.0,0.00011853,2]
[355437906,1741155044844,-963.4793166,0.00011886,2]
[355437907,1741155044854,-886.72513917,0.000119,2]
[355437908,1741155044864,-150.0,0.00011924,2]
[355437909,1741155044873,-656.33860207,0.00011925,2]
[355437910,1741155044884,-1348.517,0.00011925,2]
[355437911,1741155044894,-2212.88,0.00011925,2]
[355437912,1741155044904,-2885.82,0.00011925,2]
[355437913,1741155044914,-796.02,0.00011925,2]
[355437914,1741155044924,-1536.26,0.00011925,2]
[355437915,1741155044933,-1060.71,0.00011925,2]
[355437916,1741155044943,-10520.18,0.00011925,2]
[355437917,1741155044953,-2621.97,0.00011925,2]
[355437918,1741155044963,-154.789757,0.00011925,2]
[355437919,1741155044973,-2360.98,0.00011925,2]
[355437920,1741155044982,-2664.8,0.00011925,2]
[355437921,1741155044992,-151.883113,0.00011925,2]
[355437922,1741155045001,-1546.01,0.00011925,2]
[355437923,1741155045011,-1013.26,0.00011925,2]
[355437924,1741155045020,-2800.78,0.00011925,2]
[355437925,1741155045030,-5955.88,0.00011925,2]
[355437926,1741155045039,-154.603501,0.00011925,2]
[355437927,1741155045049,-10928.42,0.00011925,2]
[355437928,1741155045061,-2750.75,0.00011925,2]
[355437929,1741155045070,-2864.04,0.00011925,2]
[355437930,1741155045080,-5079.78,0.00011925,2]
[355437931,1741155045090,-2260.81,0.00011925,2]
[355437932,1741155045099,-3621.89,0.00011925,2]
[355437933,1741155045109,-1997.41,0.00011925,2]
[355437934,1741155045118,-1602.38,0.00011925,2]
[355437935,1741155045128,-3417.8,0.00011925,2]
[355437936,1741155045137,-1614.75,0.00011925,2]
[355437937,1741155045146,-3501.71,0.00011925,2]
[355437938,1741155045155,-500.0,0.00011925,2]
[355437939,1741155045166,-2479.16,0.00011925,2]
[355437940,1741155045175,-3922.42,0.00011925,2]
[355437941,1741155045184,-739.31,0.00011925,2]
[355437942,1741155045194,-500.0,0.00011925,2]
[355437943,1741155045205,-1696.4,0.00011925,2]
[355437944,1741155045216,-1069.9,0.00011925,2]
[355437945,1741155045226,-3370.72,0.00011925,2]
[355437946,1741155045235,-3734.06,0.00011925,2]
[355437947,1741155045245,-2961.09271226,0.00011925,2]
[355437948,1741155045279,-469.69130204,0.00011925,2]
[355437950,1741155045921,-989.55,0.000116,2]
[355437951,1741155045932,-912.8859857,0.00011925,2]
[355437952,1741155045942,-149.56401395,0.00011925,2]
[355437953,1741155045954,-261.45470494,0.00011925,2]
[355437954,1741155045965,-88.98128111,0.00011925,2]
[355437955,1741155045975,-3516.0773589,0.00011925,2]
[355437956,1741155046032,-431.725,0.00011925,2]
[355437957,1741155047415,-2267.4176411,0.00011925,2]
[355437958,1741155047424,-7856.82,0.00011925,2]
[355437959,1741155047434,-1902.33,0.00011925,2]
[355437960,1741155047444,-2066.26,0.00011925,2]
[355437961,1741155047454,-3500.65,0.00011925,2]
[355437962,1741155047463,-4771.21,0.00011925,2]
[355437963,1741155047473,-6929.13,0.00011925,2]
[355437964,1741155047482,-3611.22,0.00011925,2]
[355437965,1741155047491,-1377.17,0.00011925,2]
[355437966,1741155047501,-3304.33,0.00011925,2]
[355437967,1741155047510,-959.74,0.00011925,2]
[355437968,1741155047519,-13134.69018505,0.00011925,2]
[355437969,1741155047531,-1983.81981495,0.00011925,2]
[355437970,1741155047540,-2210.27,0.00011925,2]
[355437971,1741155047550,-2374.51,0.00011925,2]
[355437972,1741155047559,-750.62,0.00011925,2]
[355437973,1741155047568,-1122.21,0.00011925,2]
[355437974,1741155047577,-1974.07,0.00011925,2]
[355437975,1741155047587,-63.96443262,0.00011925,2]
[355437976,1741155047613,-436.03556738,0.00011925,2]
[355437977,1741155047622,-1460.42,0.00011925,2]
[355437978,1741155047631,-1586.36,0.00011925,2]
[355437979,1741155047641,-33632.33,0.00011925,2]
[355437980,1741155047650,-500.0,0.00011925,2]
[355437981,1741155047660,-392.71527123,0.00011925,2]
[355437982,1741155047669,-282.98015705,0.00011925,2]
[355437983,1741155047679,-500.0,0.00011925,2]
[355437984,1741155047688,-500.0,0.00011925,2]
[355437985,1741155047700,-500.0,0.00011925,2]
[355437986,1741155047712,-500.0,0.00011925,2]
[355437987,1741155047722,-500.0,0.00011925,2]
[355437988,1741155047731,-500.0,0.00011925,2]
[355437989,1741155047740,-500.0,0.00011925,2]
[355437990,1741155047749,-722.0,0.00011926,2]
[355437991,1741155047758,-500.0,0.00011926,2]
[355437992,1741155047769,-882.73,0.00011926,2]
[355437993,1741155047780,-500.0,0.00011926,2]
[355437994,1741155047791,-797.3,0.00011926,2]
[355437995,1741155047800,-1143.87,0.00011926,2]
[355437996,1741155047810,-957.71,0.00011926,2]
[355437997,1741155047820,-576.1,0.00011926,2]
[355437998,1741155047830,-500.0,0.00011926,2]
[355437999,1741155047840,-500.0,0.00011926,2]
[355438000,1741155047849,-500.0,0.00011926,2]
[355438001,1741155047859,-853.52,0.00011926,2]
[355438002,1741155047869,-714.8,0.00011926,2]
[355438003,1741155047879,-518.71200174,0.00011926,2]
[355438004,1741155047888,-500.0,0.00011926,2]
[355438005,1741155047897,-500.0,0.00011926,2]
[355438006,1741155047906,-1368.41,0.00011926,2]
[355438007,1741155047915,-500.0,0.00011926,2]
[355438008,1741155047924,-429.2528912,0.00011926,2]
[355438009,1741155047934,-520.27429566,0.00011926,2]
[355438010,1741155047946,-853.96,0.00011926,2]
[355438011,1741155047965,-575.4,0.00011926,2]
[355438012,1741155047981,-1063.93,0.00011926,2]
[355438013,1741155047992,-500.0,0.00011926,2]
[355438014,1741155048002,-500.0,0.00011926,2]
[355438015,1741155048013,-1684.27,0.00011926,2]
[355438016,1741155048023,-500.0,0.00011926,2]
[355438017,1741155048033,-1039.38,0.00011926,2]
[355438018,1741155048042,-927.43,0.00011926,2]
[355438019,1741155048052,-500.0,0.00011926,2]
[355438020,1741155048062,-500.0,0.00011926,2]
[355438021,1741155048072,-500.0,0.00011926,2]
[355438022,1741155048081,-853.28,0.00011926,2]
[355438023,1741155048092,-500.0,0.00011926,2]
[355438024,1741155048102,-500.0,0.00011926,2]
[355438025,1741155048112,-500.0,0.00011926,2]
[355438026,1741155048122,-759.32,0.00011926,2]
[355438027,1741155048131,-970.33,0.00011926,2]
[355438028,1741155048141,-956.7,0.00011926,2]
[355438029,1741155048151,-500.0,0.00011926,2]
[355438030,1741155048160,-824.15,0.00011926,2]
[355438031,1741155048170,-500.0,0.00011926,2]
[355438032,1741155048179,-500.0,0.00011926,2]
[355438033,1741155048188,-1419.92,0.00011926,2]
[355438034,1741155048198,-500.0,0.00011926,2]
[355438035,1741155048207,-500.0,0.00011926,2]
[355438036,1741155048216,-1300.65,0.00011926,2]
[355438037,1741155048225,-500.0,0.00011926,2]
[355438038,1741155048234,-500.0,0.00011926,2]
[355438039,1741155048244,-500.0,0.00011926,2]
[355438040,1741155048256,-835.19,0.00011926,2]
[355438041,1741155048267,-500.0,0.00011926,2]
[355438042,1741155048277,-500.0,0.00011926,2]
[355438043,1741155048288,-500.0,0.00011926,2]
[355438044,1741155048299,-850.72,0.00011926,2]
[355438045,1741155048308,-500.0,0.00011926,2]
[355438046,1741155048317,-627.29,0.00011926,2]
[355438047,1741155048327,-500.0,0.00011926,2]
[355438048,1741155048338,-501.19,0.00011926,2]
[355438049,1741155048347,-500.0,0.00011926,2]
[355438050,1741155048357,-1085.16,0.00011926,2]
[355438051,1741155048366,-500.0,0.00011926,2]
[355438052,1741155048376,-500.0,0.00011926,2]
[355438053,1741155048385,-500.0,0.00011926,2]
[355438054,1741155048394,-500.0,0.00011926,2]
[355438055,1741155048404,-1761.92,0.00011926,2]
[355438056,1741155048413,-500.0,0.00011926,2]
[355438057,1741155048423,-581.39,0.00011926,2]
[355438058,1741155048432,-500.0,0.00011926,2]
[355438059,1741155048441,-500.0,0.00011926,2]
[355438060,1741155048451,-976.12,0.00011926,2]
[355438061,1741155048460,-1032.49,0.00011926,2]
[355438062,1741155048470,-500.0,0.00011926,2]
[355438063,1741155048479,-532.44,0.00011926,2]
[355438064,1741155048488,-500.0,0.00011926,2]
[355438065,1741155048497,-927.62,0.00011926,2]
[355438066,1741155048507,-500.0,0.00011926,2]
[355438067,1741155048516,-500.0,0.00011926,2]
[355438068,1741155048525,-672.68,0.00011926,2]
[355438069,1741155048535,-982.11,0.00011926,2]
[355438070,1741155048544,-500.0,0.00011926,2]
[355438071,1741155048553,-500.0,0.00011926,2]
[355438072,1741155048563,-500.0,0.00011926,2]
[355438073,1741155048572,-500.0,0.00011926,2]
[355438074,1741155048581,-858.04,0.00011926,2]
[355438075,1741155048590,-1932.4,0.00011926,2]
[355438076,1741155048600,-500.0,0.00011926,2]
[355438077,1741155048609,-560.25520472,0.00011926,2]
[355438078,1741155048619,-500.0,0.00011926,2]
[355438079,1741155048628,-500.0,0.00011926,2]
[355438080,1741155048638,-804.3,0.00011926,2]
[355438081,1741155048647,-524.46,0.00011926,2]
[355438082,1741155048656,-500.0,0.00011926,2]
[355438083,1741155048666,-500.0,0.00011926,2]
[355438084,1741155048677,-500.0,0.00011926,2]
[355438085,1741155048686,-500.0,0.00011926,2]
[355438086,1741155048696,-500.0,0.00011926,2]
[355438087,1741155048706,-500.0,0.00011926,2]
[355438088,1741155048716,-515.34,0.00011926,2]
[355438089,1741155048726,-967.6,0.00011926,2]
[355438090,1741155048735,-500.0,0.00011926,2]
[355438091,1741155048745,-1741.21,0.00011926,2]
[355438092,1741155048755,-500.0,0.00011926,2]
[355438093,1741155048766,-531.75295736,0.00011926,2]
[355438094,1741155048777,-500.0,0.00011926,2]
[355438095,1741155048787,-500.0,0.00011926,2]
[355438096,1741155048799,-500.0,0.00011926,2]
[355438097,1741155048808,-500.0,0.00011926,2]
[355438098,1741155048818,-500.0,0.00011926,2]
[355438099,1741155048828,-500.0,0.00011926,2]
[355438100,1741155048838,-713.51,0.00011926,2]
[355438101,1741155048848,-500.0,0.00011926,2]
[355438102,1741155048858,-500.0,0.00011926,2]
[355438103,1741155048867,-1302.21,0.00011926,2]
[355438104,1741155048877,-500.0,0.00011926,2]
[355438105,1741155048886,-500.0,0.00011926,2]
[355438106,1741155048895,-500.0,0.00011926,2]
[355438107,1741155048904,-500.0,0.00011926,2]
[355438108,1741155048914,-500.0,0.00011926,2]
[355438109,1741155048923,-500.0,0.00011926,2]
[355438110,1741155048933,-500.0,0.00011926,2]
[355438111,1741155048942,-926.83,0.00011926,2]
[355438112,1741155048952,-912.82,0.00011926,2]
[355438113,1741155048962,-500.0,0.00011926,2]
[355438114,1741155048971,-500.0,0.00011926,2]
[355438115,1741155048980,-753.22,0.00011926,2]
[355438116,1741155048990,-2745.32,0.00011926,2]
[355438117,1741155048999,-624.28,0.00011926,2]
[355438118,1741155049008,-759.73,0.00011926,2]
[355438119,1741155049018,-500.0,0.00011926,2]
[355438120,1741155049028,-500.0,0.00011926,2]
[355438121,1741155049037,-500.0,0.00011926,2]
[355438122,1741155049047,-615.02,0.00011926,2]
[355438123,1741155049056,-1648.95,0.00011926,2]
[355438124,1741155049066,-914.91,0.00011926,2]
[355438125,1741155049076,-904.51,0.00011926,2]
[355438126,1741155049086,-500.0,0.00011926,2]
[355438127,1741155049095,-500.0,0.00011926,2]
[355438128,1741155049104,-512.66283929,0.00011926,2]
[355438129,1741155049113,-814.58,0.00011926,2]
[355438130,1741155049123,-500.0,0.00011926,2]
[355438131,1741155049133,-869.57,0.00011926,2]
[355438132,1741155049142,-960.31,0.00011926,2]
[355438133,1741155049151,-805.2,0.00011926,2]
[355438134,1741155049161,-500.0,0.00011926,2]
[355438135,1741155049170,-1307.71,0.00011926,2]
[355438136,1741155049180,-500.0,0.00011926,2]
[355438137,1741155049189,-500.0,0.00011926,2]
[355438138,1741155049199,-496.41325954,0.00011926,2]
[355438139,1741155049208,-645.84,0.00011926,2]
[355438140,1741155049218,-500.0,0.00011926,2]
[355438141,1741155049228,-500.0,0.00011926,2]
[355438142,1741155049238,-1633.36,0.00011926,2]
[355438143,1741155049248,-500.0,0.00011926,2]
[355438144,1741155049259,-500.0,0.00011926,2]
[355438145,1741155049269,-774.05,0.00011926,2]
[355438146,1741155049279,-417.37624767,0.00011926,2]
[355438147,1741155049288,-500.0,0.00011926,2]
[355438148,1741155049299,-500.0,0.00011926,2]
[355438149,1741155049309,-500.0,0.00011926,2]
[355438150,1741155049318,-500.0,0.00011926,2]
[355438151,1741155049328,-820.9,0.00011926,2]
[355438152,1741155049339,-500.0,0.00011926,2]
[355438153,1741155049350,-500.0,0.00011926,2]
[355438154,1741155049360,-495.0,0.00011926,2]
[355438155,1741155049369,-500.0,0.00011926,2]
[355438156,1741155049379,-1191.84,0.00011926,2]
[355438157,1741155049388,-1855.18,0.00011926,2]
[355438158,1741155049398,-2598.05,0.00011926,2]
[355438159,1741155049408,-500.0,0.00011926,2]
[355438160,1741155049417,-1415.4,0.00011926,2]
[355438161,1741155049426,-972.86,0.00011926,2]
[355438162,1741155049435,-963.85,0.00011926,2]
[355438163,1741155049445,-500.0,0.00011926,2]
[355438164,1741155049454,-500.0,0.00011926,2]
[355438165,1741155049464,-500.0,0.00011926,2]
[355438166,1741155049473,-2211.11,0.00011926,2]
[355438167,1741155049483,-500.0,0.00011926,2]
[355438168,1741155049492,-3577.66,0.00011926,2]
[355438169,1741155049501,-3558.14,0.00011926,2]
[355438170,1741155049511,-806.89,0.00011926,2]
[355438171,1741155049521,-500.0,0.00011926,2]
[355438172,1741155049530,-464.55641617,0.00011926,2]
[355438173,1741155049539,-1140.67,0.00011926,2]
[355438174,1741155049549,-500.0,0.00011926,2]
[355438175,1741155049559,-6915.85,0.00011926,2]
[355438176,1741155049569,-2634.54,0.00011926,2]
[355438177,1741155049579,-500.0,0.00011926,2]
[355438178,1741155049589,-17252.1433141,0.00011926,2]
[355438179,1741155049598,-3123.78,0.00011926,2]
[355438180,1741155049607,-2005.69,0.00011926,2]
[355438181,1741155049617,-507.79568651,0.00011926,2]
[355438182,1741155049627,-2960.19,0.00011926,2]
[355438183,1741155049636,-2142.83,0.00011926,2]
[355438184,1741155049645,-500.0,0.00011926,2]
[355438185,1741155049654,-500.0,0.00011926,2]
[355438186,1741155049664,-500.0,0.00011926,2]
[355438187,1741155049673,-500.0,0.00011926,2]
[355438188,1741155049683,-500.0,0.00011926,2]
[355438189,1741155049692,-7890.31,0.00011926,2]
[355438190,1741155049701,-4077.15,0.00011926,2]
[355438191,1741155049711,-1044.22,0.00011926,2]
[355438192,1741155049721,-512.16522572,0.00011926,2]
[355438193,1741155049730,-1213.26,0.00011926,2]
[355438194,1741155049740,-3678.51,0.00011926,2]
[355438195,1741155049749,-1305.93,0.00011926,2]
[355438196,1741155049758,-500.0,0.00011926,2]
[355438197,1741155049768,-500.0,0.00011926,2]
[355438198,1741155049777,-500.0,0.00011926,2]
[355438199,1741155049787,-521.71245109,0.00011926,2]
[355438200,1741155049796,-3913.96,0.00011926,2]
[355438201,1741155049806,-500.0,0.00011926,2]
[355438202,1741155049816,-1978.09,0.00011926,2]
[355438203,1741155049825,-500.0,0.00011926,2]
[355438204,1741155049835,-500.0,0.00011926,2]
[355438205,1741155049845,-900.59,0.00011926,2]
[355438206,1741155049856,-932.37,0.00011926,2]
[355438207,1741155049866,-500.0,0.00011926,2]
[355438208,1741155049876,-500.0,0.00011926,2]
[355438209,1741155049885,-788.07332648,0.00011926,2]
[355438211,1741155205816,800.0,9.369e-05,2]
[355438212,1741155225417,64682.21240925,0.0001,2]
[355438213,1741155280755,-500.0,0.00011927,7]
[355438214,1741155331825,-500.0,0.00012201,7]
[355438215,1741155331862,-1374.0,0.00012463,7]
[355438216,1741155372639,389.83,9.02e-05,2]
[355438217,1741155920892,13341.95051843,0.0002,120]
[355438225,1741156157038,-639.76473026,0.00010465,2]
[355438230,1741156182380,-2139.40333334,0.00010412,2]
[355438240,1741156232551,-1104.87783966,0.00010412,2]
[355438241,1741156232560,-207.989527,0.00010451,2]
[355438242,1741156232572,-2948.28337741,0.00010451,2]
[355438243,1741156232634,-20743.72709559,0.00010451,2]
[355438244,1741156232644,-660.23526974,0.00010465,2]
[355438245,1741156232656,-188.87,0.00010526,2]
[355438246,1741156232669,-550.0,0.00010602,2]
[355438247,1741156232679,-181.15,0.00010642,2]
[355438248,1741156232688,-500.0,0.00010706,2]
[355438250,1741156232698,-800.0,0.00010739,2]
[355438251,1741156232709,-200.0,0.00010796,2]
[355438253,1741156232719,-300.0,0.00010809,2]
[355438255,1741156232728,-15222.6739,0.0001081,2]
[355438257,1741156232739,-162.24,0.00010838,2]
[355438259,1741156232749,-1802.34,0.00010868,2]
[355438261,1741156232759,-1000.0,0.0001091,2]
[355438263,1741156232768,-188.87,0.00010947,2]
[355438265,1741156232778,-150.0,0.00010959,2]
[355438267,1741156232788,-550.0,0.00011,2]
[355438269,1741156232798,-675.0,0.00011,2]
[355438272,1741156232807,-150.0,0.00011016,2]
[355438274,1741156232816,-6982.89373467,0.00011017,2]
[355438278,1741156232827,-1244.37019934,0.00011017,2]
[355438282,1741156232839,-5502.00951555,0.00011017,2]
[355438285,1741156232851,-1650.0,0.00011017,2]
[355438288,1741156232894,-4636.13217197,0.00011017,2]
[355438289,1741156232909,-583.67960008,0.00011017,2]
[355438290,1741156232923,-2339.071,0.00011017,2]
[355438294,1741156238378,-677.2500001,0.00011017,2]
[355438310,1741156240390,-2186.46057836,0.00011017,2]
[355438322,1741156243334,-3555.60092391,0.00011017,2]
[355438337,1741156245136,-12743.65719097,0.00011017,2]
[355438338,1741156245187,-2801.29996,0.00011017,2]
[355438339,1741156245199,-1596.299985,0.00011017,2]
[355438340,1741156246495,-37949.45514005,0.00011017,2]
[355438341,1741156246504,-344.68,0.00011178,2]
[355438342,1741156246514,-1007.0,0.00011178,2]
[355438343,1741156246524,-1979.1,0.00011178,2]
[355438344,1741156246533,-500.0,0.0001126,2]
[355438345,1741156246542,-989.55,0.00011278,2]
[355438346,1741156246552,-389.83,0.00011284,2]
[355438347,1741156246562,-188.87,0.00011368,2]
[355438348,1741156246572,-989.55,0.00011378,2]
[355438349,1741156246581,-1979.1,0.00011378,2]
[355438350,1741156246591,-989.55,0.00011478,2]
[355438351,1741156246600,-550.0,0.00011512,2]
[355438353,1741156246609,-150.0,0.00011512,2]
[355438354,1741156246619,-507.0,0.00011534,2]
[355438355,1741156246628,-500.0,0.00011561,2]
[355438356,1741156246637,-4336.63110063,0.0001173,2]
[355438357,1741156246646,-678.25007,0.0001181,2]
[355438358,1741156246655,-1060.75024723,0.00011823,2]
[355438359,1741156246667,-162.78309315,0.00011824,2]
[355438360,1741156246677,-1723.09490137,0.00011824,2]
[355438361,1741156246686,-361.30075111,0.00011824,2]
[355438362,1741156246695,-967.1983,0.00011824,2]
[355438363,1741156246705,-1300.0,0.00011835,2]
[355438364,1741156246714,-1060.75024718,0.00011884,2]
[355438365,1741156246723,-1723.09490133,0.00011885,2]
[355438366,1741156246733,-857.16763456,0.000119,2]
[355438367,1741156246745,-2636.14,0.00011922,2]
[355438368,1741156246756,-4868.12,0.00011922,2]
[355438369,1741156246765,-500.0,0.00011922,2]
[355438370,1741156246775,-2504.01,0.00011922,2]
[355438371,1741156246784,-500.0,0.00011922,2]
[355438372,1741156246794,-1025.33,0.00011922,2]
[355438373,1741156246803,-4200.72,0.00011922,2]
[355438374,1741156246812,-500.0,0.00011922,2]
[355438375,1741156246823,-719.34,0.00011922,2]
[355438376,1741156246833,-500.0,0.00011922,2]
[355438377,1741156246843,-691.91,0.00011922,2]
[355438378,1741156246852,-764.07,0.00011922,2]
[355438379,1741156246861,-1823.07,0.00011922,2]
[355438380,1741156246870,-1520.26,0.00011922,2]
[355438381,1741156246881,-919.76,0.00011922,2]
[355438382,1741156246891,-4572.41,0.00011922,2]
[355438383,1741156246900,-500.0,0.00011922,2]
[355438384,1741156246910,-817.96,0.00011922,2]
[355438385,1741156246919,-845.95,0.00011922,2]
[355438386,1741156246929,-1075.45,0.00011922,2]
[355438387,1741156246938,-1319.78,0.00011922,2]
[355438388,1741156246947,-1150.979,0.00011923,2]
[355438389,1741156246957,-613.02682377,0.00011923,2]
[355438390,1741156246967,-1096.21,0.00011923,2]
[355438391,1741156246976,-1312.16,0.00011923,2]
[355438392,1741156246986,-500.0,0.00011923,2]
[355438393,1741156246996,-685.01,0.00011923,2]
[355438394,1741156247005,-1585.09,0.00011923,2]
[355438395,1741156247015,-500.0,0.00011923,2]
[355438396,1741156247025,-1614.09,0.00011923,2]
[355438397,1741156247035,-888.78,0.00011923,2]
[355438398,1741156247044,-500.0,0.00011923,2]
[355438399,1741156247055,-681.43,0.00011923,2]